[Event "Titled Tuesday Blitz November 29 Late 2022"]
[White "Bok, Benjamin"]
[Black "Remizov, Yaroslav"]
[WhiteFideId "1017063"]
[BlackFideId "34134015"]
[WhiteElo "2658"]
[BlackElo "2414"]
[Result "1-0"]
[Round "11"]
[TimeControl "180+1"]
[Date "2022.11.30"]
[WhiteClock "0:00:30"]
[BlackClock "0:00:02"]

1. d4 {[%clk 0:03:00]}  Nf6 {[%clk 0:02:57]} 2. c4 {[%clk 0:03:01]}  e6 {[%clk 0:02:57]} 3. Nc3 {[%clk 0:03:01]}  Bb4 {[%clk 0:02:57]} 4. Qc2 {[%clk 0:03:01]}  O-O {[%clk 0:02:55]} 5. a3 {[%clk 0:03:01]}  Bxc3+ {[%clk 0:02:52]} 6. Qxc3 {[%clk 0:03:02]}  h6 {[%clk 0:02:44]} 7. Nf3 {[%clk 0:02:58]}  b6 {[%clk 0:02:42]} 8. e3 {[%clk 0:02:57]}  Bb7 {[%clk 0:02:42]} 9. Be2 {[%clk 0:02:58]}  a5 {[%clk 0:02:33]} 10. b3 {[%clk 0:02:57]}  d6 {[%clk 0:02:32]} 11. Bb2 {[%clk 0:02:57]}  Nbd7 {[%clk 0:02:32]} 12. O-O {[%clk 0:02:58]}  Qe7 {[%clk 0:02:31]} 13. b4 {[%clk 0:02:54]}  Ne4 {[%clk 0:02:25]} 14. Qc2 {[%clk 0:02:54]}  f5 {[%clk 0:02:20]} 15. d5 {[%clk 0:02:50]}  e5 {[%clk 0:02:10]} 16. Bd3 {[%clk 0:02:41]}  Ng5 {[%clk 0:01:53]} 17. Nxg5 {[%clk 0:02:39]}  Qxg5 {[%clk 0:01:51]} 18. f4 {[%clk 0:02:39]}  exf4 {[%clk 0:01:28]} 19. exf4 {[%clk 0:02:39]}  Qg6 {[%clk 0:01:28]} 20. Rf3 {[%clk 0:02:28]}  Rf7 {[%clk 0:00:31]} 21. Rg3 {[%clk 0:02:08]}  Qh5 {[%clk 0:00:20]} 22. Bxf5 {[%clk 0:01:52]}  Qxf5 {[%clk 0:00:21]} 23. Rxg7+ {[%clk 0:01:49]}  Kf8 {[%clk 0:00:21]} 24. Qxf5 {[%clk 0:01:49]}  Rxf5 {[%clk 0:00:22]} 25. Rxd7 {[%clk 0:01:50]}  Rf7 {[%clk 0:00:22]} 26. Rxf7+ {[%clk 0:01:48]}  Kxf7 {[%clk 0:00:23]} 27. Kf2 {[%clk 0:01:30]}  b5 {[%clk 0:00:09]} 28. cxb5 {[%clk 0:01:17]}  Bxd5 {[%clk 0:00:06]} 29. Rc1 {[%clk 0:01:02]}  axb4 {[%clk 0:00:06]} 30. Rxc7+ {[%clk 0:01:02]}  Ke6 {[%clk 0:00:07]} 31. g4 {[%clk 0:00:38]}  Bb3 {[%clk 0:00:07]} 32. f5+ {[%clk 0:00:32]}  Kd5 {[%clk 0:00:06]} 33. b6 {[%clk 0:00:33]}  bxa3 {[%clk 0:00:06]} 34. b7 {[%clk 0:00:33]}  Rb8 {[%clk 0:00:03]} 35. Bxa3 {[%clk 0:00:34]}  Ba4 {[%clk 0:00:03]} 36. f6 {[%clk 0:00:31]}  Ke6 {[%clk 0:00:04]} 37. f7 {[%clk 0:00:31]}  Bb5 {[%clk 0:00:02]} 38. Rc8 {[%clk 0:00:30]} 1-0


[Site "https://www.chess.com"]

[Event "Titled Tuesday Blitz November 29 Late 2022"]
[White "Bortnyk, Olexandr"]
[Black "Jobava, Baadur"]
[WhiteFideId "14120828"]
[BlackFideId "13601520"]
[WhiteElo "2723"]
[BlackElo "2582"]
[Result "1/2-1/2"]
[Round "11"]
[TimeControl "180+1"]
[Date "2022.11.30"]
[WhiteClock "0:00:26"]
[BlackClock "0:01:22"]

1. e4 {[%clk 0:03:00]}  c5 {[%clk 0:02:54]} 2. c3 {[%clk 0:02:59]}  e6 {[%clk 0:02:50]} 3. d4 {[%clk 0:02:59]}  d5 {[%clk 0:02:50]} 4. exd5 {[%clk 0:03:00]}  exd5 {[%clk 0:02:50]} 5. Be3 {[%clk 0:03:00]}  cxd4 {[%clk 0:02:49]} 6. Bxd4 {[%clk 0:03:01]}  Nc6 {[%clk 0:02:48]} 7. Nf3 {[%clk 0:03:02]}  Nf6 {[%clk 0:02:42]} 8. Nbd2 {[%clk 0:02:56]}  Bd6 {[%clk 0:02:40]} 9. Be2 {[%clk 0:02:48]}  O-O {[%clk 0:02:40]} 10. O-O {[%clk 0:02:48]}  Re8 {[%clk 0:02:36]} 11. Nb3 {[%clk 0:02:41]}  Nxd4 {[%clk 0:02:32]} 12. Nbxd4 {[%clk 0:02:22]}  a6 {[%clk 0:02:32]} 13. Qb3 {[%clk 0:02:20]}  Bc7 {[%clk 0:02:30]} 14. Rfe1 {[%clk 0:02:17]}  Qd6 {[%clk 0:02:30]} 15. Rad1 {[%clk 0:02:04]}  h6 {[%clk 0:02:19]} 16. c4 {[%clk 0:01:54]}  Bg4 {[%clk 0:02:07]} 17. h3 {[%clk 0:01:46]}  dxc4 {[%clk 0:01:55]} 18. Bxc4 {[%clk 0:01:33]}  Rxe1+ {[%clk 0:01:35]} 19. Rxe1 {[%clk 0:01:34]}  Bh5 {[%clk 0:01:22]} 20. Qxb7 {[%clk 0:00:56]}  Bxf3 {[%clk 0:01:22]} 21. Nxf3 {[%clk 0:00:49]}  Rb8 {[%clk 0:01:22]} 22. Qxa6 {[%clk 0:00:49]}  Qxa6 {[%clk 0:01:22]} 23. Bxa6 {[%clk 0:00:50]}  Rxb2 {[%clk 0:01:23]} 24. Re2 {[%clk 0:00:36]}  Rb1+ {[%clk 0:01:22]} 25. Re1 {[%clk 0:00:36]}  Rb2 {[%clk 0:01:22]} 26. Re2 {[%clk 0:00:26]}  Rb1+ {[%clk 0:01:22]} 27. Re1 {[%clk 0:00:26]}  Rb2 {[%clk 0:01:22]} 1/2-1/2


[Site "https://www.chess.com"]

[Event "Titled Tuesday Blitz November 29 Late 2022"]
[White "Curtis, John"]
[Black "Chernomordik, Pavel"]
[WhiteFideId "3200256"]
[BlackFideId "2804530"]
[WhiteElo "2203"]
[BlackElo "2192"]
[Result "1-0"]
[Round "11"]
[TimeControl "180+1"]
[Date "2022.11.30"]
[WhiteClock "0:00:21"]
[BlackClock "0:00:30"]

1. e4 {[%clk 0:03:00]}  g6 {[%clk 0:02:59]} 2. d4 {[%clk 0:03:00]}  Bg7 {[%clk 0:02:58]} 3. Nf3 {[%clk 0:03:01]}  d6 {[%clk 0:02:58]} 4. Bc4 {[%clk 0:03:01]}  e6 {[%clk 0:02:57]} 5. Bb3 {[%clk 0:03:00]}  b6 {[%clk 0:02:57]} 6. O-O {[%clk 0:03:00]}  Bb7 {[%clk 0:02:57]} 7. Re1 {[%clk 0:03:01]}  Nd7 {[%clk 0:02:57]} 8. a4 {[%clk 0:02:52]}  a6 {[%clk 0:02:49]} 9. c3 {[%clk 0:02:49]}  Ne7 {[%clk 0:02:46]} 10. Bf4 {[%clk 0:02:41]}  h6 {[%clk 0:02:43]} 11. h3 {[%clk 0:02:39]}  g5 {[%clk 0:02:40]} 12. Bh2 {[%clk 0:02:38]}  Ng6 {[%clk 0:02:40]} 13. Nbd2 {[%clk 0:02:36]}  O-O {[%clk 0:02:38]} 14. Nc4 {[%clk 0:02:19]}  Kh7 {[%clk 0:02:33]} 15. e5 {[%clk 0:02:18]}  d5 {[%clk 0:02:29]} 16. Ne3 {[%clk 0:02:13]}  c5 {[%clk 0:02:29]} 17. Bc2 {[%clk 0:02:09]}  Kh8 {[%clk 0:02:26]} 18. Bg3 {[%clk 0:02:07]}  f5 {[%clk 0:02:19]} 19. exf6 {[%clk 0:02:06]}  Qxf6 {[%clk 0:02:12]} 20. Ng4 {[%clk 0:01:58]}  Qf7 {[%clk 0:02:12]} 21. Qd3 {[%clk 0:01:49]}  Qf5 {[%clk 0:02:08]} 22. Qe2 {[%clk 0:01:42]}  Qf7 {[%clk 0:02:04]} 23. Qxe6 {[%clk 0:01:32]}  Qxe6 {[%clk 0:01:58]} 24. Rxe6 {[%clk 0:01:31]}  Nf4 {[%clk 0:01:58]} 25. Bxf4 {[%clk 0:01:21]}  Rxf4 {[%clk 0:01:57]} 26. Re7 {[%clk 0:01:21]}  Bc6 {[%clk 0:01:56]} 27. Nge5 {[%clk 0:01:10]}  Nxe5 {[%clk 0:01:54]} 28. Nxe5 {[%clk 0:01:10]}  Bxe5 {[%clk 0:01:49]} 29. dxe5 {[%clk 0:01:10]}  Raf8 {[%clk 0:01:47]} 30. Rh7+ {[%clk 0:01:01]}  Kg8 {[%clk 0:01:47]} 31. f3 {[%clk 0:00:53]}  Be8 {[%clk 0:01:38]} 32. Rxh6 {[%clk 0:00:52]}  b5 {[%clk 0:01:32]} 33. axb5 {[%clk 0:00:38]}  Bxb5 {[%clk 0:01:20]} 34. Rd1 {[%clk 0:00:37]}  d4 {[%clk 0:01:18]} 35. cxd4 {[%clk 0:00:34]}  Rxd4 {[%clk 0:01:17]} 36. Rxd4 {[%clk 0:00:33]}  cxd4 {[%clk 0:01:16]} 37. Rd6 {[%clk 0:00:33]}  Rc8 {[%clk 0:01:14]} 38. Bf5 {[%clk 0:00:33]}  Rc1+ {[%clk 0:01:09]} 39. Kh2 {[%clk 0:00:33]}  Rc5 {[%clk 0:01:05]} 40. Rxd4 {[%clk 0:00:26]}  Rxe5 {[%clk 0:01:05]} 41. Bd3 {[%clk 0:00:26]}  Kf7 {[%clk 0:01:01]} 42. Bxb5 {[%clk 0:00:25]}  Rxb5 {[%clk 0:01:01]} 43. b4 {[%clk 0:00:25]}  Kf6 {[%clk 0:01:00]} 44. h4 {[%clk 0:00:26]}  Ke5 {[%clk 0:00:55]} 45. Rg4 {[%clk 0:00:26]}  gxh4 {[%clk 0:00:49]} 46. Rxh4 {[%clk 0:00:26]}  Rb7 {[%clk 0:00:47]} 47. Rh6 {[%clk 0:00:23]}  Rxb4 {[%clk 0:00:45]} 48. Rxa6 {[%clk 0:00:23]}  Kf4 {[%clk 0:00:46]} 49. Rf6+ {[%clk 0:00:20]}  Kg5 {[%clk 0:00:45]} 50. Rf8 {[%clk 0:00:20]}  Kh4 {[%clk 0:00:43]} 51. g3+ {[%clk 0:00:19]}  Kg5 {[%clk 0:00:43]} 52. Kh3 {[%clk 0:00:19]}  Rb3 {[%clk 0:00:42]} 53. f4+ {[%clk 0:00:19]}  Kg6 {[%clk 0:00:42]} 54. Kg4 {[%clk 0:00:19]}  Kg7 {[%clk 0:00:41]} 55. Rc8 {[%clk 0:00:19]}  Kf6 {[%clk 0:00:40]} 56. Rc6+ {[%clk 0:00:19]}  Kf7 {[%clk 0:00:40]} 57. f5 {[%clk 0:00:17]}  Re3 {[%clk 0:00:38]} 58. Kf4 {[%clk 0:00:17]}  Re1 {[%clk 0:00:38]} 59. g4 {[%clk 0:00:18]}  Rf1+ {[%clk 0:00:37]} 60. Kg5 {[%clk 0:00:18]}  Rd1 {[%clk 0:00:36]} 61. Rc7+ {[%clk 0:00:19]}  Kf8 {[%clk 0:00:36]} 62. Kg6 {[%clk 0:00:19]}  Rd8 {[%clk 0:00:34]} 63. f6 {[%clk 0:00:19]}  Kg8 {[%clk 0:00:32]} 64. Rg7+ {[%clk 0:00:19]}  Kf8 {[%clk 0:00:32]} 65. Rh7 {[%clk 0:00:19]}  Kg8 {[%clk 0:00:31]} 66. f7+ {[%clk 0:00:19]}  Kf8 {[%clk 0:00:31]} 67. Rh8+ {[%clk 0:00:19]}  Ke7 {[%clk 0:00:31]} 68. Rxd8 {[%clk 0:00:20]}  Kxd8 {[%clk 0:00:30]} 69. f8=Q+ {[%clk 0:00:21]} 1-0


[Site "https://www.chess.com"]

[Event "Titled Tuesday Blitz November 29 Late 2022"]
[White "Deac, Bogdan-Daniel"]
[Black "Carlsen, Magnus"]
[WhiteFideId "1226380"]
[BlackFideId "1503014"]
[WhiteElo "2648"]
[BlackElo "2830"]
[Result "0-1"]
[Round "11"]
[TimeControl "180+1"]
[Date "2022.11.30"]
[WhiteClock "0:00:03"]
[BlackClock "0:00:09"]

1. d4 {[%clk 0:03:00]}  d5 {[%clk 0:02:59]} 2. c4 {[%clk 0:03:00]}  e6 {[%clk 0:02:59]} 3. Nf3 {[%clk 0:03:00]}  Nf6 {[%clk 0:02:59]} 4. g3 {[%clk 0:03:00]}  Bb4+ {[%clk 0:02:53]} 5. Bd2 {[%clk 0:03:00]}  a5 {[%clk 0:02:54]} 6. Bg2 {[%clk 0:03:01]}  dxc4 {[%clk 0:02:54]} 7. Qc2 {[%clk 0:03:00]}  b6 {[%clk 0:02:53]} 8. Qxc4 {[%clk 0:02:57]}  Bb7 {[%clk 0:02:53]} 9. Bxb4 {[%clk 0:02:53]}  axb4 {[%clk 0:02:52]} 10. O-O {[%clk 0:02:54]}  Nc6 {[%clk 0:02:51]} 11. Nbd2 {[%clk 0:02:52]}  O-O {[%clk 0:02:51]} 12. Rfc1 {[%clk 0:02:51]}  h6 {[%clk 0:02:41]} 13. e3 {[%clk 0:02:49]}  Ra7 {[%clk 0:02:36]} 14. Ne1 {[%clk 0:02:21]}  Nd5 {[%clk 0:02:36]} 15. Qb3 {[%clk 0:01:28]}  Qd7 {[%clk 0:02:23]} 16. Nd3 {[%clk 0:01:20]}  Rfa8 {[%clk 0:02:22]} 17. Nc4 {[%clk 0:01:20]}  Qd8 {[%clk 0:01:47]} 18. Nde5 {[%clk 0:00:52]}  Nxe5 {[%clk 0:01:44]} 19. Nxe5 {[%clk 0:00:50]}  Qd6 {[%clk 0:01:41]} 20. Nd3 {[%clk 0:00:45]}  Qe7 {[%clk 0:00:35]} 21. h4 {[%clk 0:00:39]}  Ra4 {[%clk 0:00:29]} 22. Rc2 {[%clk 0:00:27]}  R8a5 {[%clk 0:00:27]} 23. Rac1 {[%clk 0:00:22]}  c6 {[%clk 0:00:19]} 24. Ne5 {[%clk 0:00:17]}  c5 {[%clk 0:00:19]} 25. Nc4 {[%clk 0:00:13]}  Ra6 {[%clk 0:00:18]} 26. e4 {[%clk 0:00:13]}  b5 {[%clk 0:00:18]} 27. exd5 {[%clk 0:00:12]}  bxc4 {[%clk 0:00:18]} 28. Rxc4 {[%clk 0:00:12]}  Bxd5 {[%clk 0:00:18]} 29. Bxd5 {[%clk 0:00:11]}  exd5 {[%clk 0:00:19]} 30. Rxc5 {[%clk 0:00:12]}  Rxa2 {[%clk 0:00:19]} 31. Rxd5 {[%clk 0:00:09]}  Ra1 {[%clk 0:00:12]} 32. Rc5 {[%clk 0:00:09]}  Qxc5 {[%clk 0:00:10]} 33. dxc5 {[%clk 0:00:08]}  Rxc1+ {[%clk 0:00:11]} 34. Kg2 {[%clk 0:00:09]}  Rxc5 {[%clk 0:00:11]} 35. Qxb4 {[%clk 0:00:09]}  Rc8 {[%clk 0:00:12]} 36. Qb7 {[%clk 0:00:09]}  Raa8 {[%clk 0:00:12]} 37. b4 {[%clk 0:00:08]}  Rab8 {[%clk 0:00:13]} 38. Qe4 {[%clk 0:00:08]}  Rc7 {[%clk 0:00:13]} 39. Qf4 {[%clk 0:00:08]}  Rcb7 {[%clk 0:00:14]} 40. Qd6 {[%clk 0:00:08]}  Rxb4 {[%clk 0:00:14]} 41. Qc5 {[%clk 0:00:07]}  Rb2 {[%clk 0:00:14]} 42. Qe5 {[%clk 0:00:06]}  R2b5 {[%clk 0:00:13]} 43. Qd6 {[%clk 0:00:06]}  Ra8 {[%clk 0:00:13]} 44. Qc6 {[%clk 0:00:06]}  Rba5 {[%clk 0:00:13]} 45. g4 {[%clk 0:00:06]}  Ra2 {[%clk 0:00:13]} 46. Kg3 {[%clk 0:00:05]}  R2a6 {[%clk 0:00:11]} 47. Qb7 {[%clk 0:00:04]}  Ra3+ {[%clk 0:00:10]} 48. f3 {[%clk 0:00:04]}  R3a7 {[%clk 0:00:11]} 49. Qb6 {[%clk 0:00:04]}  Ra6 {[%clk 0:00:12]} 50. Qb7 {[%clk 0:00:04]}  R6a7 {[%clk 0:00:12]} 51. Qb6 {[%clk 0:00:05]}  Re7 {[%clk 0:00:12]} 52. Qc6 {[%clk 0:00:05]}  Rae8 {[%clk 0:00:12]} 53. g5 {[%clk 0:00:04]}  Re6 {[%clk 0:00:10]} 54. Qd7 {[%clk 0:00:04]}  h5 {[%clk 0:00:10]} 55. Qd5 {[%clk 0:00:03]}  g6 {[%clk 0:00:08]} 56. Qd7 {[%clk 0:00:04]}  Re5 {[%clk 0:00:08]} 57. Qd6 {[%clk 0:00:04]}  R8e6 {[%clk 0:00:08]} 58. Qd8+ {[%clk 0:00:04]}  Kh7 {[%clk 0:00:08]} 59. Qd4 {[%clk 0:00:04]}  Rf5 {[%clk 0:00:09]} 60. Qd3 {[%clk 0:00:04]}  Re1 {[%clk 0:00:09]} 61. Qc3 {[%clk 0:00:02]}  Rg1+ {[%clk 0:00:09]} 62. Kf2 {[%clk 0:00:02]}  Rg4 {[%clk 0:00:09]} 63. Qc7 {[%clk 0:00:02]}  Rxh4 {[%clk 0:00:10]} 64. Kg3 {[%clk 0:00:03]}  Rd4 {[%clk 0:00:09]} 65. Qe7 {[%clk 0:00:03]}  Rdf4 {[%clk 0:00:09]} 66. Qe3 {[%clk 0:00:03]}  Rxf3+ {[%clk 0:00:09]} 0-1


[Site "https://www.chess.com"]

[Event "Titled Tuesday Blitz November 29 Late 2022"]
[White "Dylag, Emilia"]
[Black "Risteski, Emil"]
[WhiteFideId "21805172"]
[BlackFideId "15005267"]
[WhiteElo "1878"]
[BlackElo "2251"]
[Result "0-1"]
[Round "11"]
[TimeControl "180+1"]
[Date "2022.11.30"]
[WhiteClock "0:00:18"]
[BlackClock "0:00:18"]

1. d4 {[%clk 0:03:00]}  f5 {[%clk 0:02:59]} 2. c4 {[%clk 0:02:59]}  Nf6 {[%clk 0:02:59]} 3. Nc3 {[%clk 0:02:56]}  e6 {[%clk 0:02:59]} 4. Qc2 {[%clk 0:02:57]}  Bb4 {[%clk 0:02:56]} 5. e3 {[%clk 0:02:57]}  b6 {[%clk 0:02:55]} 6. Bd3 {[%clk 0:02:57]}  Bb7 {[%clk 0:02:55]} 7. f3 {[%clk 0:02:58]}  Nh5 {[%clk 0:02:47]} 8. a3 {[%clk 0:02:41]}  Bxc3+ {[%clk 0:02:27]} 9. bxc3 {[%clk 0:02:41]}  Qh4+ {[%clk 0:02:16]} 10. Qf2 {[%clk 0:02:39]}  Qxf2+ {[%clk 0:02:16]} 11. Kxf2 {[%clk 0:02:40]}  c5 {[%clk 0:02:16]} 12. Ne2 {[%clk 0:02:39]}  Nc6 {[%clk 0:02:12]} 13. Bd2 {[%clk 0:02:32]}  Na5 {[%clk 0:02:09]} 14. Rab1 {[%clk 0:02:32]}  Ba6 {[%clk 0:02:08]} 15. g4 {[%clk 0:02:31]}  fxg4 {[%clk 0:02:04]} 16. fxg4 {[%clk 0:02:32]}  Nf6 {[%clk 0:02:03]} 17. g5 {[%clk 0:02:32]}  Nd5 {[%clk 0:01:49]} 18. cxd5 {[%clk 0:01:57]}  Bxd3 {[%clk 0:01:46]} 19. Rbg1 {[%clk 0:01:50]}  Be4 {[%clk 0:01:31]} 20. dxe6 {[%clk 0:01:49]}  dxe6 {[%clk 0:01:31]} 21. Nf4 {[%clk 0:01:48]}  Kd7 {[%clk 0:01:25]} 22. dxc5 {[%clk 0:01:38]}  bxc5 {[%clk 0:01:15]} 23. c4 {[%clk 0:01:37]}  Nxc4 {[%clk 0:01:12]} 24. Bc3 {[%clk 0:01:37]}  Bxh1 {[%clk 0:01:10]} 25. Rxh1 {[%clk 0:01:37]}  e5 {[%clk 0:01:09]} 26. Rd1+ {[%clk 0:01:35]}  Kc6 {[%clk 0:01:09]} 27. Nd5 {[%clk 0:01:32]}  Rhf8+ {[%clk 0:01:02]} 28. Ke2 {[%clk 0:01:31]}  Rf7 {[%clk 0:00:59]} 29. e4 {[%clk 0:01:06]}  Raf8 {[%clk 0:00:57]} 30. Be1 {[%clk 0:01:06]}  Nd6 {[%clk 0:00:53]} 31. Bg3 {[%clk 0:00:51]}  Nxe4 {[%clk 0:00:47]} 32. Bxe5 {[%clk 0:00:52]}  Rd7 {[%clk 0:00:43]} 33. Ne3 {[%clk 0:00:38]}  Rxd1 {[%clk 0:00:42]} 34. Kxd1 {[%clk 0:00:38]}  g6 {[%clk 0:00:38]} 35. Ng4 {[%clk 0:00:36]}  Nxg5 {[%clk 0:00:36]} 36. Bf6 {[%clk 0:00:30]}  Ne4 {[%clk 0:00:33]} 37. Be7 {[%clk 0:00:29]}  Re8 {[%clk 0:00:31]} 38. Bh4 {[%clk 0:00:28]}  h5 {[%clk 0:00:28]} 39. Ne3 {[%clk 0:00:25]}  g5 {[%clk 0:00:27]} 40. Be1 {[%clk 0:00:24]}  Nc3+ {[%clk 0:00:21]} 41. Kd2 {[%clk 0:00:19]}  Nb1+ {[%clk 0:00:21]} 42. Kd3 {[%clk 0:00:19]}  Nxa3 {[%clk 0:00:19]} 43. Nf5 {[%clk 0:00:18]}  Rxe1 {[%clk 0:00:18]} 0-1


[Site "https://www.chess.com"]

[Event "Titled Tuesday Blitz November 29 Late 2022"]
[White "Espinosa, Pedro"]
[Black "Seletsky, Grigory"]
[WhiteFideId "30921066"]
[BlackFideId "14112191"]
[WhiteElo "2016"]
[BlackElo "2492"]
[Result "1-0"]
[Round "11"]
[TimeControl "180+1"]
[Date "2022.11.30"]
[WhiteClock "0:00:50"]
[BlackClock "0:00:01"]

1. d4 {[%clk 0:03:00]}  c5 {[%clk 0:02:59]} 2. dxc5 {[%clk 0:02:58]}  e6 {[%clk 0:02:57]} 3. Nc3 {[%clk 0:02:58]}  Nf6 {[%clk 0:02:55]} 4. e3 {[%clk 0:02:59]}  Bxc5 {[%clk 0:02:53]} 5. Nf3 {[%clk 0:02:59]}  d5 {[%clk 0:02:53]} 6. Be2 {[%clk 0:03:00]}  Nc6 {[%clk 0:02:53]} 7. O-O {[%clk 0:03:01]}  O-O {[%clk 0:02:52]} 8. Nd4 {[%clk 0:03:01]}  e5 {[%clk 0:02:49]} 9. Nb3 {[%clk 0:03:01]}  Bb6 {[%clk 0:02:47]} 10. e4 {[%clk 0:03:00]}  dxe4 {[%clk 0:02:43]} 11. Bg5 {[%clk 0:02:58]}  Bf5 {[%clk 0:02:42]} 12. Bb5 {[%clk 0:02:35]}  Nd4 {[%clk 0:02:41]} 13. Bc4 {[%clk 0:02:27]}  h6 {[%clk 0:02:39]} 14. Bh4 {[%clk 0:02:23]}  Rc8 {[%clk 0:02:30]} 15. Be2 {[%clk 0:02:15]}  Nxb3 {[%clk 0:02:14]} 16. axb3 {[%clk 0:02:12]}  Qxd1 {[%clk 0:02:13]} 17. Raxd1 {[%clk 0:02:11]}  Bd4 {[%clk 0:02:04]} 18. Bc4 {[%clk 0:01:59]}  Rfd8 {[%clk 0:01:55]} 19. Nd5 {[%clk 0:01:56]}  Nxd5 {[%clk 0:01:23]} 20. Bxd8 {[%clk 0:01:54]}  Rxd8 {[%clk 0:01:13]} 21. c3 {[%clk 0:01:54]}  e3 {[%clk 0:01:13]} 22. cxd4 {[%clk 0:01:52]}  exf2+ {[%clk 0:00:53]} 23. Rxf2 {[%clk 0:01:49]}  Ne3 {[%clk 0:00:49]} 24. Re1 {[%clk 0:01:49]}  Nxc4 {[%clk 0:00:47]} 25. bxc4 {[%clk 0:01:47]}  Bg6 {[%clk 0:00:45]} 26. dxe5 {[%clk 0:01:47]}  Rd4 {[%clk 0:00:39]} 27. Rfe2 {[%clk 0:01:46]}  Rxc4 {[%clk 0:00:38]} 28. e6 {[%clk 0:01:46]}  fxe6 {[%clk 0:00:38]} 29. Rxe6 {[%clk 0:01:47]}  Bf7 {[%clk 0:00:36]} 30. R6e3 {[%clk 0:01:44]}  Rb4 {[%clk 0:00:35]} 31. R1e2 {[%clk 0:01:44]}  a5 {[%clk 0:00:34]} 32. Rd2 {[%clk 0:01:44]}  a4 {[%clk 0:00:25]} 33. Rc3 {[%clk 0:01:41]}  Bc4 {[%clk 0:00:21]} 34. Re3 {[%clk 0:01:30]}  Bf7 {[%clk 0:00:18]} 35. h3 {[%clk 0:01:29]}  b5 {[%clk 0:00:17]} 36. Rc3 {[%clk 0:01:24]}  Rf4 {[%clk 0:00:15]} 37. Rc8+ {[%clk 0:01:21]}  Kh7 {[%clk 0:00:14]} 38. Rb8 {[%clk 0:01:21]}  Bc4 {[%clk 0:00:12]} 39. Rb7 {[%clk 0:01:20]}  Rf6 {[%clk 0:00:10]} 40. Rdd7 {[%clk 0:01:20]}  Rg6 {[%clk 0:00:08]} 41. Kf2 {[%clk 0:01:19]}  Rf6+ {[%clk 0:00:08]} 42. Ke3 {[%clk 0:01:19]}  Rg6 {[%clk 0:00:08]} 43. g4 {[%clk 0:01:19]}  h5 {[%clk 0:00:06]} 44. gxh5 {[%clk 0:01:19]}  Rg5 {[%clk 0:00:06]} 45. Kd4 {[%clk 0:01:16]}  Kh6 {[%clk 0:00:05]} 46. Rd8 {[%clk 0:00:58]}  Rxh5 {[%clk 0:00:04]} 47. Rh8+ {[%clk 0:00:53]}  Kg6 {[%clk 0:00:04]} 48. Rxg7+ {[%clk 0:00:49]}  Kxg7 {[%clk 0:00:04]} 49. Rxh5 {[%clk 0:00:50]}  Kg6 {[%clk 0:00:02]} 50. Rc5 {[%clk 0:00:49]}  Bf1 {[%clk 0:00:01]} 51. h4 {[%clk 0:00:50]} 1-0


[Site "https://www.chess.com"]

[Event "Titled Tuesday Blitz November 29 Late 2022"]
[White "Ezat, Mohamed"]
[Black "Gatterer, Florian"]
[WhiteFideId "10600906"]
[BlackFideId "811688"]
[WhiteElo "2386"]
[BlackElo "2218"]
[Result "0-1"]
[Round "11"]
[TimeControl "180+1"]
[Date "2022.11.30"]
[WhiteClock "0:00:18"]
[BlackClock "0:00:14"]

1. e4 {[%clk 0:03:00]}  c6 {[%clk 0:02:58]} 2. d4 {[%clk 0:03:00]}  d5 {[%clk 0:02:59]} 3. e5 {[%clk 0:03:00]}  Bf5 {[%clk 0:02:58]} 4. Nc3 {[%clk 0:02:59]}  e6 {[%clk 0:02:57]} 5. g4 {[%clk 0:03:00]}  Bg6 {[%clk 0:02:57]} 6. Nge2 {[%clk 0:03:00]}  h5 {[%clk 0:02:53]} 7. Nf4 {[%clk 0:02:59]}  Bh7 {[%clk 0:02:53]} 8. Nxh5 {[%clk 0:02:58]}  c5 {[%clk 0:02:53]} 9. Be3 {[%clk 0:02:56]}  Nc6 {[%clk 0:02:53]} 10. Bb5 {[%clk 0:02:52]}  cxd4 {[%clk 0:02:49]} 11. Bxd4 {[%clk 0:02:51]}  a6 {[%clk 0:02:49]} 12. Bxc6+ {[%clk 0:02:50]}  bxc6 {[%clk 0:02:50]} 13. f4 {[%clk 0:02:47]}  Bg6 {[%clk 0:02:48]} 14. Ng3 {[%clk 0:02:43]}  c5 {[%clk 0:02:48]} 15. Bf2 {[%clk 0:02:43]}  Rb8 {[%clk 0:02:44]} 16. b3 {[%clk 0:02:43]}  Qa5 {[%clk 0:02:32]} 17. Qd2 {[%clk 0:02:42]}  Ne7 {[%clk 0:02:24]} 18. O-O {[%clk 0:02:38]}  Nc6 {[%clk 0:02:11]} 19. Rae1 {[%clk 0:02:30]}  c4 {[%clk 0:02:04]} 20. f5 {[%clk 0:02:29]}  Bh7 {[%clk 0:02:04]} 21. fxe6 {[%clk 0:02:13]}  fxe6 {[%clk 0:02:04]} 22. Qe3 {[%clk 0:00:58]}  Bb4 {[%clk 0:01:53]} 23. Nge2 {[%clk 0:00:58]}  Rf8 {[%clk 0:01:44]} 24. Bh4 {[%clk 0:00:55]}  Bc5 {[%clk 0:00:47]} 25. Rxf8+ {[%clk 0:00:52]}  Kxf8 {[%clk 0:00:46]} 26. Bf2 {[%clk 0:00:49]}  Bxe3 {[%clk 0:00:44]} 27. Bxe3 {[%clk 0:00:50]}  Bxc2 {[%clk 0:00:37]} 28. Rf1+ {[%clk 0:00:46]}  Kg8 {[%clk 0:00:36]} 29. Na4 {[%clk 0:00:42]}  Rf8 {[%clk 0:00:31]} 30. Rc1 {[%clk 0:00:36]}  Bd3 {[%clk 0:00:29]} 31. Nf4 {[%clk 0:00:34]}  Nxe5 {[%clk 0:00:26]} 32. Nc5 {[%clk 0:00:31]}  Nxg4 {[%clk 0:00:23]} 33. Nfxe6 {[%clk 0:00:30]}  Nxe3 {[%clk 0:00:19]} 34. Nxf8 {[%clk 0:00:30]}  Kxf8 {[%clk 0:00:18]} 35. bxc4 {[%clk 0:00:23]}  Qd2 {[%clk 0:00:16]} 36. Nxd3 {[%clk 0:00:18]}  Qg2# {[%clk 0:00:14]} 0-1


[Site "https://www.chess.com"]